[Event "December 12 Late 2023"]
[Site "https://www.chess.com"]
[Date "2023.12.12"]
[Round "6"]
[White "Bonin, Jay"]
[Black "Gulamirian, Korun"]
[Result "1-0"]
[Board "132"]
[TimeControl "180+1"]
[WhiteFideId "2000644"]
[BlackFideId "4144899"]
[WhiteElo "2310"]
[BlackElo "2017"]
[WhiteTeam "USA"]
[BlackTeam "RUS"]
[WhiteClock "0:01:12"]
[BlackClock "0:00:56"]

1. d4 {[%clk 0:02:58]}  Nf6 {[%clk 0:02:59]} 2. Nf3 {[%clk 0:02:58]}  g6 {[%clk 0:02:58]} 3. c4 {[%clk 0:02:57]}  c5 {[%clk 0:02:58]} 4. Nc3 {[%clk 0:02:56]}  cxd4 {[%clk 0:02:56]} 5. Nxd4 {[%clk 0:02:55]}  Bg7 {[%clk 0:02:56]} 6. e4 {[%clk 0:02:55]}  d6 {[%clk 0:02:56]} 7. Be2 {[%clk 0:02:54]}  O-O {[%clk 0:02:56]} 8. O-O {[%clk 0:02:52]}  Nbd7 {[%clk 0:02:55]} 9. Be3 {[%clk 0:02:49]}  b6 {[%clk 0:02:54]} 10. Nc6 {[%clk 0:02:45]}  Qe8 {[%clk 0:02:52]} 11. f3 {[%clk 0:02:41]}  Bb7 {[%clk 0:02:52]} 12. Nb4 {[%clk 0:02:41]}  a5 {[%clk 0:02:51]} 13. Nbd5 {[%clk 0:02:40]}  Nxd5 {[%clk 0:02:49]} 14. cxd5 {[%clk 0:02:37]}  Nc5 {[%clk 0:02:43]} 15. Qd2 {[%clk 0:02:31]}  Qd7 {[%clk 0:02:34]} 16. Nb5 {[%clk 0:02:22]}  Rfc8 {[%clk 0:02:31]} 17. Rac1 {[%clk 0:02:16]}  Ba6 {[%clk 0:02:29]} 18. Nd4 {[%clk 0:02:14]}  Bxe2 {[%clk 0:02:25]} 19. Qxe2 {[%clk 0:02:12]}  Qa4 {[%clk 0:02:12]} 20. Nc6 {[%clk 0:02:08]}  Kf8 {[%clk 0:02:07]} 21. b3 {[%clk 0:02:05]}  Qa3 {[%clk 0:02:01]} 22. Rc2 {[%clk 0:01:56]}  Na6 {[%clk 0:01:54]} 23. Bc1 {[%clk 0:01:49]}  Rxc6 {[%clk 0:01:36]} 24. Bxa3 {[%clk 0:01:46]}  Bd4+ {[%clk 0:01:33]} 25. Kh1 {[%clk 0:01:44]}  Rc3 {[%clk 0:01:24]} 26. Rxc3 {[%clk 0:01:41]}  Bxc3 {[%clk 0:01:24]} 27. Rc1 {[%clk 0:01:39]}  Bb4 {[%clk 0:01:18]} 28. Bxb4 {[%clk 0:01:32]}  Nxb4 {[%clk 0:01:17]} 29. a3 {[%clk 0:01:29]}  Na6 {[%clk 0:01:17]} 30. Qb5 {[%clk 0:01:25]}  Nc5 {[%clk 0:01:16]} 31. Qxb6 {[%clk 0:01:25]}  Nd3 {[%clk 0:01:12]} 32. Rd1 {[%clk 0:01:20]}  Rc8 {[%clk 0:01:07]} 33. Rxd3 {[%clk 0:01:16]}  Rc1+ {[%clk 0:01:06]} 34. Qg1 {[%clk 0:01:15]}  Rxg1+ {[%clk 0:01:06]} 35. Kxg1 {[%clk 0:01:15]}  Ke8 {[%clk 0:01:05]} 36. Rc3 {[%clk 0:01:14]}  Kd7 {[%clk 0:01:06]} 37. b4 {[%clk 0:01:14]}  axb4 {[%clk 0:01:04]} 38. axb4 {[%clk 0:01:13]}  e6 {[%clk 0:00:56]} 39. b5 {[%clk 0:01:12]} 1-0

[Event "December 12 Late 2023"]
[Site "https://www.chess.com"]
[Date "2023.12.12"]
[Round "6"]
[White "Dubreuil, Julien"]
[Black "ogpin"]
[Result "0-1"]
[Board "133"]
[TimeControl "180+1"]
[WhiteFideId "621285"]
[WhiteElo "2304"]
[BlackElo "2127"]
[WhiteTeam "FRA"]
[WhiteClock "0:01:19"]
[BlackClock "0:00:39"]

1. a3 {[%clk 0:03:00]}  a5 {[%clk 0:02:58]} 2. Nf3 {[%clk 0:03:00]}  Nf6 {[%clk 0:02:58]} 3. g3 {[%clk 0:03:01]}  c6 {[%clk 0:02:58]} 4. Bg2 {[%clk 0:03:01]}  d5 {[%clk 0:02:58]} 5. O-O {[%clk 0:03:01]}  e6 {[%clk 0:02:54]} 6. b3 {[%clk 0:02:57]}  Be7 {[%clk 0:02:53]} 7. Bb2 {[%clk 0:02:58]}  O-O {[%clk 0:02:53]} 8. d3 {[%clk 0:02:58]}  Nbd7 {[%clk 0:02:53]} 9. Nbd2 {[%clk 0:02:55]}  b5 {[%clk 0:02:53]} 10. e4 {[%clk 0:02:55]}  Ba6 {[%clk 0:02:49]} 11. e5 {[%clk 0:02:49]}  Ne8 {[%clk 0:02:47]} 12. Re1 {[%clk 0:02:36]}  Rc8 {[%clk 0:02:45]} 13. h4 {[%clk 0:02:36]}  c5 {[%clk 0:02:41]} 14. c4 {[%clk 0:02:33]}  bxc4 {[%clk 0:02:38]} 15. bxc4 {[%clk 0:02:33]}  Nb6 {[%clk 0:02:34]} 16. Bc3 {[%clk 0:02:28]}  dxc4 {[%clk 0:02:31]} 17. dxc4 {[%clk 0:02:25]}  Nxc4 {[%clk 0:02:28]} 18. Nxc4 {[%clk 0:02:25]}  Bxc4 {[%clk 0:02:29]} 19. Qa4 {[%clk 0:02:22]}  Qd3 {[%clk 0:02:21]} 20. Rac1 {[%clk 0:02:18]}  Nc7 {[%clk 0:02:11]} 21. Re3 {[%clk 0:02:17]}  Bb5 {[%clk 0:02:00]} 22. Qg4 {[%clk 0:02:07]}  Qg6 {[%clk 0:01:59]} 23. Qf4 {[%clk 0:02:01]}  Nd5 {[%clk 0:01:59]} 24. Qe4 {[%clk 0:02:00]}  Nxe3 {[%clk 0:01:58]} 25. Qxe3 {[%clk 0:02:01]}  a4 {[%clk 0:01:55]} 26. h5 {[%clk 0:01:59]}  Qd3 {[%clk 0:01:55]} 27. Qf4 {[%clk 0:01:57]}  c4 {[%clk 0:01:48]} 28. h6 {[%clk 0:01:58]}  g6 {[%clk 0:01:48]} 29. Bb4 {[%clk 0:01:55]}  Qd8 {[%clk 0:01:37]} 30. Bxe7 {[%clk 0:01:44]}  Qxe7 {[%clk 0:01:37]} 31. Ng5 {[%clk 0:01:45]}  c3 {[%clk 0:01:30]} 32. Ne4 {[%clk 0:01:44]}  Rfd8 {[%clk 0:01:21]} 33. Nf6+ {[%clk 0:01:44]}  Kh8 {[%clk 0:01:21]} 34. Rc2 {[%clk 0:01:39]}  Bd3 {[%clk 0:01:10]} 35. Rc1 {[%clk 0:01:39]}  c2 {[%clk 0:01:08]} 36. Kh2 {[%clk 0:01:38]}  Bf5 {[%clk 0:01:07]} 37. g4 {[%clk 0:01:38]}  Rd1 {[%clk 0:01:06]} 38. gxf5 {[%clk 0:01:38]}  Rxc1 {[%clk 0:01:01]} 39. fxg6 {[%clk 0:01:39]}  Rh1+ {[%clk 0:00:41]} 40. Bxh1 {[%clk 0:01:37]}  hxg6 {[%clk 0:00:42]} 41. Qc1 {[%clk 0:01:25]}  Qc5 {[%clk 0:00:42]} 42. Ne4 {[%clk 0:01:23]}  Qxe5+ {[%clk 0:00:41]} 43. f4 {[%clk 0:01:23]}  Qh5+ {[%clk 0:00:39]} 44. Kg1 {[%clk 0:01:19]}  Qd1+ {[%clk 0:00:39]} 0-1

[Event "December 12 Late 2023"]
[Site "https://www.chess.com"]
[Date "2023.12.12"]
[Round "6"]
[White "Kniazev, Igor"]
[Black "Dilmukhametov, Artur"]
[Result "1-0"]
[Board "136"]
[TimeControl "180+1"]
[WhiteFideId "4136349"]
[BlackFideId "24179922"]
[WhiteElo "2078"]
[BlackElo "2377"]
[WhiteTeam "RUS"]
[BlackTeam "RUS"]
[WhiteClock "0:00:03"]
[BlackClock "0:00:00"]

1. e4 {[%clk 0:03:00]}  e5 {[%clk 0:02:59]} 2. Nf3 {[%clk 0:03:00]}  d5 {[%clk 0:02:59]} 3. Nxe5 {[%clk 0:02:54]}  Bd6 {[%clk 0:02:58]} 4. d4 {[%clk 0:02:54]}  dxe4 {[%clk 0:02:57]} 5. Nc3 {[%clk 0:02:49]}  Bxe5 {[%clk 0:02:53]} 6. dxe5 {[%clk 0:02:48]}  Qxd1+ {[%clk 0:02:50]} 7. Nxd1 {[%clk 0:02:42]}  Nc6 {[%clk 0:02:45]} 8. Bb5 {[%clk 0:02:35]}  Ne7 {[%clk 0:02:45]} 9. O-O {[%clk 0:02:28]}  h6 {[%clk 0:02:36]} 10. Nc3 {[%clk 0:02:26]}  Bf5 {[%clk 0:02:31]} 11. Re1 {[%clk 0:02:16]}  O-O-O {[%clk 0:02:29]} 12. Bf4 {[%clk 0:02:12]}  Nd4 {[%clk 0:02:14]} 13. Ba4 {[%clk 0:02:02]}  Ng6 {[%clk 0:01:59]} 14. Bg3 {[%clk 0:02:01]}  Rhe8 {[%clk 0:01:57]} 15. Nxe4 {[%clk 0:01:57]}  f6 {[%clk 0:01:40]} 16. c3 {[%clk 0:01:52]}  b5 {[%clk 0:01:13]} 17. cxd4 {[%clk 0:01:12]}  bxa4 {[%clk 0:01:12]} 18. Rac1 {[%clk 0:01:13]}  Kb7 {[%clk 0:01:00]} 19. Nc5+ {[%clk 0:01:03]}  Kb8 {[%clk 0:00:50]} 20. Na6+ {[%clk 0:00:55]}  Kb7 {[%clk 0:00:45]} 21. Nxc7 {[%clk 0:00:55]}  Re7 {[%clk 0:00:40]} 22. exf6 {[%clk 0:00:43]}  Rxe1+ {[%clk 0:00:39]} 23. Rxe1 {[%clk 0:00:42]}  gxf6 {[%clk 0:00:40]} 24. d5 {[%clk 0:00:33]}  h5 {[%clk 0:00:33]} 25. h4 {[%clk 0:00:29]}  Nxh4 {[%clk 0:00:25]} 26. Bxh4 {[%clk 0:00:19]}  Kxc7 {[%clk 0:00:25]} 27. Rc1+ {[%clk 0:00:15]}  Kb7 {[%clk 0:00:21]} 28. Rc5 {[%clk 0:00:09]}  Rd6 {[%clk 0:00:16]} 29. f3 {[%clk 0:00:06]}  Bb1 {[%clk 0:00:13]} 30. a3 {[%clk 0:00:05]}  Ba2 {[%clk 0:00:14]} 31. Rb5+ {[%clk 0:00:04]}  Ka6 {[%clk 0:00:13]} 32. Rb4 {[%clk 0:00:04]}  Bb3 {[%clk 0:00:11]} 33. Rf4 {[%clk 0:00:01]}  Rxd5 {[%clk 0:00:09]} 34. Rxf6+ {[%clk 0:00:01]}  Kb5 {[%clk 0:00:09]} 35. Rg6 {[%clk 0:00:01]}  Rd1+ {[%clk 0:00:08]} 36. Kh2 {[%clk 0:00:01]}  Rd2 {[%clk 0:00:06]} 37. Rg5+ {[%clk 0:00:02]}  Kb6 {[%clk 0:00:05]} 38. Rxh5 {[%clk 0:00:02]}  Rxb2 {[%clk 0:00:00]} 39. f4 {[%clk 0:00:03]} 1-0

[Event "December 12 Late 2023"]
[Site "https://www.chess.com"]
[Date "2023.12.12"]
[Round "7"]
[White "Smirnov, Anton"]
[Black "Bluebaum, Matthias"]
[Result "1/2-1/2"]
[Board "2"]
[TimeControl "180+1"]
[WhiteFideId "3208923"]
[BlackFideId "24651516"]
[WhiteElo "2985"]
[BlackElo "3055"]
[WhiteTeam "AUS"]
[BlackTeam "GER"]
[WhiteClock "0:00:39"]
[BlackClock "0:00:42"]

1. e4 {[%clk 0:03:00]}  e6 {[%clk 0:03:00]} 2. d4 {[%clk 0:03:00]}  d5 {[%clk 0:03:00]} 3. Nc3 {[%clk 0:02:58]}  Nf6 {[%clk 0:03:00]} 4. e5 {[%clk 0:02:58]}  Nfd7 {[%clk 0:03:01]} 5. f4 {[%clk 0:02:59]}  c5 {[%clk 0:03:01]} 6. Nf3 {[%clk 0:02:58]}  Nc6 {[%clk 0:03:02]} 7. Be3 {[%clk 0:02:59]}  a6 {[%clk 0:03:03]} 8. Qd2 {[%clk 0:02:59]}  b5 {[%clk 0:03:03]} 9. Nd1 {[%clk 0:02:55]}  b4 {[%clk 0:03:03]} 10. Nf2 {[%clk 0:02:53]}  Be7 {[%clk 0:03:03]} 11. Be2 {[%clk 0:02:53]}  O-O {[%clk 0:03:03]} 12. O-O {[%clk 0:02:53]}  a5 {[%clk 0:03:04]} 13. Nd3 {[%clk 0:02:49]}  cxd4 {[%clk 0:02:59]} 14. Nxd4 {[%clk 0:02:49]}  Nxd4 {[%clk 0:03:00]} 15. Bxd4 {[%clk 0:02:49]}  f6 {[%clk 0:02:42]} 16. Qe3 {[%clk 0:02:38]}  fxe5 {[%clk 0:02:41]} 17. Nxe5 {[%clk 0:02:37]}  Nxe5 {[%clk 0:02:42]} 18. Bxe5 {[%clk 0:02:36]}  Bd7 {[%clk 0:02:32]} 19. Bd3 {[%clk 0:02:33]}  Bf6 {[%clk 0:02:29]} 20. Rae1 {[%clk 0:02:25]}  Rc8 {[%clk 0:02:26]} 21. Kh1 {[%clk 0:02:18]}  Bxe5 {[%clk 0:02:22]} 22. fxe5 {[%clk 0:02:15]}  Qh4 {[%clk 0:02:18]} 23. g3 {[%clk 0:02:11]}  Qh3 {[%clk 0:02:14]} 24. Qg5 {[%clk 0:01:59]}  Bc6 {[%clk 0:02:03]} 25. Kg1 {[%clk 0:01:52]}  d4 {[%clk 0:02:01]} 26. Qd2 {[%clk 0:01:46]}  Bd5 {[%clk 0:01:49]} 27. a3 {[%clk 0:01:43]}  bxa3 {[%clk 0:01:46]} 28. bxa3 {[%clk 0:01:44]}  h5 {[%clk 0:01:43]} 29. Rxf8+ {[%clk 0:01:38]}  Rxf8 {[%clk 0:01:43]} 30. Rf1 {[%clk 0:01:38]}  Rxf1+ {[%clk 0:01:31]} 31. Bxf1 {[%clk 0:01:39]}  Qf5 {[%clk 0:01:32]} 32. Qxd4 {[%clk 0:01:14]}  Qxc2 {[%clk 0:01:21]} 33. Qe3 {[%clk 0:01:11]}  Qd1 {[%clk 0:01:09]} 34. Kf2 {[%clk 0:01:10]}  Qc2+ {[%clk 0:01:00]} 35. Kg1 {[%clk 0:01:09]}  a4 {[%clk 0:00:59]} 36. h4 {[%clk 0:01:08]}  Qd1 {[%clk 0:00:50]} 37. Kf2 {[%clk 0:01:08]}  Qc2+ {[%clk 0:00:50]} 38. Kg1 {[%clk 0:01:07]}  Qd1 {[%clk 0:00:45]} 39. Kf2 {[%clk 0:01:03]}  Qc2+ {[%clk 0:00:42]} 40. Kg1 {[%clk 0:00:39]} 1/2-1/2

[Event "December 12 Late 2023"]
[Site "https://www.chess.com"]
[Date "2023.12.12"]
[Round "7"]
[White "Andreikin, Dmitry"]
[Black "Bok, Benjamin"]
[Result "1-0"]
[Board "5"]
[TimeControl "180+1"]
[WhiteFideId "4158814"]
[BlackFideId "1017063"]
[WhiteElo "3108"]
[BlackElo "2941"]
[WhiteTeam "FID"]
[BlackTeam "NED"]
[WhiteClock "0:00:48"]
[BlackClock "0:00:01"]

1. d4 {[%clk 0:03:00]}  Nf6 {[%clk 0:02:59]} 2. c4 {[%clk 0:03:01]}  e6 {[%clk 0:03:00]} 3. Nf3 {[%clk 0:02:59]}  b6 {[%clk 0:03:00]} 4. e3 {[%clk 0:02:56]}  Bb7 {[%clk 0:02:59]} 5. Bd3 {[%clk 0:02:57]}  d5 {[%clk 0:02:58]} 6. O-O {[%clk 0:02:57]}  dxc4 {[%clk 0:02:49]} 7. Bxc4 {[%clk 0:02:57]}  Nbd7 {[%clk 0:02:50]} 8. Nc3 {[%clk 0:02:56]}  Bd6 {[%clk 0:02:47]} 9. Qe2 {[%clk 0:02:53]}  c5 {[%clk 0:02:46]} 10. dxc5 {[%clk 0:02:42]}  Bxc5 {[%clk 0:02:45]} 11. e4 {[%clk 0:02:42]}  Qb8 {[%clk 0:02:44]} 12. e5 {[%clk 0:02:33]}  Bxf3 {[%clk 0:02:40]} 13. Qxf3 {[%clk 0:02:33]}  Nxe5 {[%clk 0:02:40]} 14. Bb5+ {[%clk 0:02:32]}  Ke7 {[%clk 0:02:40]} 15. Qg3 {[%clk 0:02:32]}  Ng6 {[%clk 0:02:29]} 16. Qf3 {[%clk 0:02:32]}  a6 {[%clk 0:02:01]} 17. Be2 {[%clk 0:02:22]}  Rd8 {[%clk 0:01:55]} 18. b4 {[%clk 0:02:02]}  Bd4 {[%clk 0:01:52]} 19. b5 {[%clk 0:01:48]}  axb5 {[%clk 0:01:38]} 20. Nxb5 {[%clk 0:01:49]}  Bxa1 {[%clk 0:01:27]} 21. Ba3+ {[%clk 0:01:49]}  Rxa3 {[%clk 0:01:14]} 22. Qxa3+ {[%clk 0:01:50]}  Ke8 {[%clk 0:01:13]} 23. Rxa1 {[%clk 0:01:49]}  Qe5 {[%clk 0:01:12]} 24. Rc1 {[%clk 0:01:24]}  Qxe2 {[%clk 0:00:34]} 25. Nd6+ {[%clk 0:01:24]}  Rxd6 {[%clk 0:00:22]} 26. Qxd6 {[%clk 0:01:25]}  Qxf2+ {[%clk 0:00:17]} 27. Kh1 {[%clk 0:01:23]}  Ne7 {[%clk 0:00:03]} 28. Qb8+ {[%clk 0:01:22]}  Nc8 {[%clk 0:00:03]} 29. Qxc8+ {[%clk 0:00:54]}  Ke7 {[%clk 0:00:03]} 30. Qc7+ {[%clk 0:00:54]}  Ke8 {[%clk 0:00:01]} 31. Qd6 {[%clk 0:00:48]}  Nd7 {[%clk 0:00:01]} 1-0

[Event "December 12 Late 2023"]
[Site "https://www.chess.com"]
[Date "2023.12.12"]
[Round "7"]
[White "Cordova, Emilio"]
[Black "Erigaisi Arjun"]
[Result "1-0"]
[Board "6"]
[TimeControl "180+1"]
[WhiteFideId "3801497"]
[BlackFideId "35009192"]
[WhiteElo "2927"]
[BlackElo "3097"]
[WhiteTeam "PER"]
[BlackTeam "IND"]
[WhiteClock "0:00:26"]
[BlackClock "0:01:21"]

1. Nf3 {[%clk 0:03:00]}  d6 {[%clk 0:02:59]} 2. d4 {[%clk 0:03:00]}  g6 {[%clk 0:02:59]} 3. c4 {[%clk 0:03:00]}  Bg7 {[%clk 0:03:00]} 4. Nc3 {[%clk 0:03:00]}  Nc6 {[%clk 0:03:00]} 5. g3 {[%clk 0:03:00]}  Bd7 {[%clk 0:03:00]} 6. Bg2 {[%clk 0:03:00]}  Qc8 {[%clk 0:03:00]} 7. O-O {[%clk 0:02:57]}  h5 {[%clk 0:02:59]} 8. d5 {[%clk 0:02:57]}  Ne5 {[%clk 0:02:58]} 9. h4 {[%clk 0:02:56]}  Bh3 {[%clk 0:02:56]} 10. Bf4 {[%clk 0:02:50]}  Nh6 {[%clk 0:02:44]} 11. Rc1 {[%clk 0:02:44]}  Bxg2 {[%clk 0:02:40]} 12. Kxg2 {[%clk 0:02:44]}  Nhg4 {[%clk 0:02:41]} 13. c5 {[%clk 0:02:41]}  O-O {[%clk 0:02:40]} 14. Qa4 {[%clk 0:02:03]}  a6 {[%clk 0:02:30]} 15. Ne4 {[%clk 0:01:59]}  Qf5 {[%clk 0:02:28]} 16. Bxe5 {[%clk 0:01:45]}  Nxe5 {[%clk 0:02:27]} 17. Rfd1 {[%clk 0:01:29]}  Rfc8 {[%clk 0:02:17]} 18. Qc2 {[%clk 0:01:24]}  Ng4 {[%clk 0:02:13]} 19. b4 {[%clk 0:01:18]}  c6 {[%clk 0:02:09]} 20. Qd3 {[%clk 0:00:43]}  cxd5 {[%clk 0:01:49]} 21. Qxd5 {[%clk 0:00:44]}  Qxd5 {[%clk 0:01:50]} 22. Rxd5 {[%clk 0:00:44]}  Bf8 {[%clk 0:01:51]} 23. Rdd1 {[%clk 0:00:38]}  dxc5 {[%clk 0:01:47]} 24. Nxc5 {[%clk 0:00:37]}  e6 {[%clk 0:01:47]} 25. Rd7 {[%clk 0:00:26]}  b6 {[%clk 0:01:36]} 26. Nd3 {[%clk 0:00:26]}  Rxc1 {[%clk 0:01:37]} 27. Nxc1 {[%clk 0:00:27]}  Bxb4 {[%clk 0:01:37]} 28. Nd3 {[%clk 0:00:27]}  a5 {[%clk 0:01:35]} 29. Ng5 {[%clk 0:00:27]}  Nh6 {[%clk 0:01:29]} 30. Rb7 {[%clk 0:00:27]}  Rb8 {[%clk 0:01:21]} 31. Rxb8+ {[%clk 0:00:26]} 1-0

[Event "December 12 Late 2023"]
[Site "https://www.chess.com"]
[Date "2023.12.12"]
[Round "7"]
[White "Durarbayli, Vasif"]
[Black "Duda, Jan-Krzysztof"]
[Result "1-0"]
[Board "7"]
[TimeControl "180+1"]
[WhiteFideId "13402935"]
[BlackFideId "1170546"]
[WhiteElo "2916"]
[BlackElo "3064"]
[WhiteTeam "AZE"]
[BlackTeam "POL"]
[WhiteClock "0:00:05"]
[BlackClock "0:00:00"]

1. e4 {[%clk 0:03:00]}  e6 {[%clk 0:03:00]} 2. d4 {[%clk 0:03:00]}  d5 {[%clk 0:03:01]} 3. Nc3 {[%clk 0:03:01]}  Nf6 {[%clk 0:03:00]} 4. e5 {[%clk 0:03:01]}  Nfd7 {[%clk 0:03:00]} 5. f4 {[%clk 0:03:02]}  c5 {[%clk 0:03:00]} 6. Nf3 {[%clk 0:03:02]}  Nc6 {[%clk 0:03:01]} 7. Be3 {[%clk 0:03:03]}  a6 {[%clk 0:02:57]} 8. Ne2 {[%clk 0:03:02]}  b5 {[%clk 0:02:51]} 9. c3 {[%clk 0:03:03]}  b4 {[%clk 0:02:44]} 10. cxb4 {[%clk 0:03:02]}  cxd4 {[%clk 0:02:31]} 11. Nexd4 {[%clk 0:03:03]}  Bxb4+ {[%clk 0:02:28]} 12. Kf2 {[%clk 0:03:03]}  Bb7 {[%clk 0:02:06]} 13. Rc1 {[%clk 0:02:52]}  Na5 {[%clk 0:02:01]} 14. Qa4 {[%clk 0:02:39]}  Be7 {[%clk 0:02:00]} 15. f5 {[%clk 0:02:19]}  O-O {[%clk 0:01:32]} 16. fxe6 {[%clk 0:02:18]}  Nc5 {[%clk 0:01:33]} 17. exf7+ {[%clk 0:01:52]}  Rxf7 {[%clk 0:01:30]} 18. Rxc5 {[%clk 0:01:43]}  Bxc5 {[%clk 0:01:31]} 19. e6 {[%clk 0:01:43]}  Rf8 {[%clk 0:01:20]} 20. h4 {[%clk 0:01:26]}  Rc8 {[%clk 0:01:07]} 21. e7 {[%clk 0:00:38]}  Bxe7 {[%clk 0:00:44]} 22. Ne6 {[%clk 0:00:37]}  Qe8 {[%clk 0:00:21]} 23. Qxa5 {[%clk 0:00:31]}  Rc2+ {[%clk 0:00:21]} 24. Be2 {[%clk 0:00:23]}  d4 {[%clk 0:00:15]} 25. Nxd4 {[%clk 0:00:15]}  Rxb2 {[%clk 0:00:13]} 26. Qc3 {[%clk 0:00:09]}  Rxe2+ {[%clk 0:00:05]} 27. Kxe2 {[%clk 0:00:08]}  Kh8 {[%clk 0:00:05]} 28. h5 {[%clk 0:00:08]}  Qf7 {[%clk 0:00:03]} 29. h6 {[%clk 0:00:07]}  Qxa2+ {[%clk 0:00:03]} 30. Qc2 {[%clk 0:00:04]}  Qxc2+ {[%clk 0:00:02]} 31. Nxc2 {[%clk 0:00:05]}  gxh6 {[%clk 0:00:02]} 32. Rxh6 {[%clk 0:00:04]}  a5 {[%clk 0:00:02]} 33. Rb6 {[%clk 0:00:03]}  Bd5 {[%clk 0:00:01]} 34. Bd4+ {[%clk 0:00:04]}  Kg8 {[%clk 0:00:00]} 35. Ne3 {[%clk 0:00:05]} 1-0